bitfinex/quotes_SOLUSD_20220218
["timestamp","ask_amount","ask_price","bid_price","bid_amount"]
[1645205110976,110.0,90.885,90.791,6.0]
[1645205111171,110.0,90.883,90.791,6.0]
[1645205111372,5.753,90.882,90.792,110.0]
[1645205111670,110.0,90.879,90.8,16.5235]
[1645205111871,0.25,90.878,90.8,16.5235]
[1645205112471,110.0,90.869,90.775,5.503]
[1645205112672,110.0,90.867,90.77,16.5292]
[1645205112872,110.0,90.865,90.77,16.5292]
[1645205113071,5.755,90.864,90.77,16.5292]
[1645205113878,112.6293831,90.863,90.77,16.5292]
[1645205114076,5.755,90.862,90.771,110.0]
[1645205114278,45.46882244,90.868,90.791,110.0]
[1645205114479,45.46882244,90.868,90.791,116.81]
[1645205114678,45.46882244,90.868,90.793,110.0]
[1645205114881,45.46882244,90.868,90.794,5.753]
[1645205115079,45.46882244,90.868,90.792,2.6293831]
[1645205115280,45.46882244,90.868,90.78,67.8965]
[1645205115580,45.46882244,90.868,90.781,0.25]
[1645205115880,0.25,90.867,90.782,5.505]
[1645205116085,0.25,90.867,90.783,116.25]
[1645205116281,6.25,90.867,90.785,110.0]
[1645205116482,6.25,90.867,90.78,12.82]
[1645205116483,116.25,90.867,90.78,12.82]
[1645205116680,110.0,90.865,90.771,2.6293831]
[1645205116882,5.755,90.864,90.75,12.82]
[1645205117080,53.7364,90.864,90.751,115.506]
[1645205117281,48.2314,90.864,90.751,115.506]
[1645205117482,16.5259,90.86,90.78,16.5264]
[1645205117681,0.25,90.859,90.78,16.5264]
[1645205117884,0.25,90.859,90.781,0.25]
[1645205118082,0.25,90.859,90.762,110.25]
[1645205118282,0.25,90.859,90.764,110.0]
[1645205118484,0.25,90.859,90.766,110.0]
[1645205118687,0.25,90.859,90.771,110.0]
[1645205118885,0.25,90.862,90.773,110.0]
[1645205119187,0.25,90.862,90.775,110.0]
[1645205119387,0.25,90.862,90.79,16.5256]
[1645205119787,0.25,90.862,90.791,0.25]
[1645205119990,0.25,90.862,90.78,55.0756]
[1645205120288,0.25,90.862,90.781,0.25]
[1645205120488,0.25,90.862,90.79,55.0703]
[1645205120686,6.25,90.862,90.791,0.25]
[1645205120886,0.25,90.862,90.791,0.25]
[1645205121086,6.25,90.867,90.791,0.25]
[1645205121889,6.25,90.867,90.775,5.753]
[1645205122490,6.25,90.867,90.8,16.5242]
[1645205123493,5.503,90.866,90.8,16.5242]
[1645205123688,0.25,90.865,90.8,16.5242]
[1645205123891,5.503,90.864,90.8,16.5242]
[1645205124090,16.526,90.86,90.8,16.5242]
[1645205124488,0.25,90.859,90.8,16.5242]
[1645205125188,6.25,90.859,90.8,16.5242]
[1645205126189,6.0,90.858,90.8,16.5242]
[1645205126393,45.46882244,90.868,90.81,16.5222]
[1645205126592,6.0,90.867,90.81,16.5222]
[1645205127394,45.46882244,90.868,90.81,16.5222]
[1645205128092,45.46882244,90.868,90.8,16.5247]
[1645205128493,0.25,90.867,90.8,16.5247]
[1645205130694,5.503,90.883,90.801,110.0]
[1645205130895,5.503,90.897,90.82,16.5202]
[1645205131094,6.0,90.883,90.82,16.5202]
[1645205131695,55.05904001,90.882,90.82,16.5202]
[1645205134405,0.25,90.881,90.82,16.5202]
[1645205134905,6.25,90.881,90.82,16.5202]
[1645205137605,0.25,90.881,90.82,16.5202]
[1645205138007,110.0,90.879,90.81,16.5233]
[1645205138208,24.6539831,90.88,90.731,23.6717]
[1645205138209,110.0,90.877,90.77,12.82]
[1645205138408,0.25,90.876,90.773,5.503]
[1645205138609,55.05904001,90.882,90.772,8.1343831]
[1645205138808,6.0,90.881,90.774,2.6293831]
[1645205139112,6.0,90.881,90.801,110.0]
[1645205139309,6.0,90.881,90.802,0.25]
[1645205139512,6.0,90.881,90.802,2.8793831]
[1645205139927,47.543,90.884,90.811,110.0]
[1645205140128,1.53694938,90.899,90.812,0.25]
[1645205140327,6.0,90.898,90.812,2.8793831]
[1645205140530,1.53694938,90.901,90.813,110.0]
[1645205140729,48.50234609,90.899,90.814,0.25]
[1645205140930,48.50234609,90.899,90.82,16.5197]
[1645205141332,0.25,90.898,90.821,2.8793831]
[1645205141530,48.50234609,90.899,90.821,2.8793831]
[1645205141930,48.50234609,90.899,90.821,0.25]
[1645205142331,48.50234609,90.899,90.84,16.5175]
[1645205142535,6.0,90.898,90.84,16.5175]
[1645205142931,110.0,90.897,90.811,22.8692]
[1645205143130,1.53694938,90.894,90.79,67.8923]
[1645205143334,1.53694938,90.891,90.792,6.0]
[1645205143633,5.753,90.89,90.791,6.0]
[1645205143833,5.753,90.89,90.79,67.8923]
[1645205144234,23.81044938,90.89,90.811,110.0]
[1645205144434,16.7705,90.89,90.812,0.25]
[1645205144731,0.25,90.89,90.812,2.8793831]
[1645205144930,0.25,90.896,90.812,2.8793831]
[1645205145331,0.25,90.896,90.83,16.5193]
[1645205145731,6.0,90.898,90.83,16.5193]
[1645205145931,6.0,90.898,90.831,0.25]
[1645205146132,48.50234609,90.899,90.821,110.0]
[1645205146334,48.50234609,90.899,90.822,0.25]
[1645205146534,157.2947,90.897,90.82,55.0544]
[1645205146834,16.5197,90.89,90.8,55.0654]
[1645205147033,5.753,90.889,90.801,6.0]
[1645205147232,0.25,90.889,90.801,6.0]
[1645205147733,162.48214305,90.879,90.81,16.5212]
[1645205147933,0.25,90.878,90.81,16.5212]
[1645205148131,0.25,90.878,90.78,73.4004]
[1645205148332,110.0,90.877,90.78,67.8974]
[1645205148533,5.753,90.876,90.78,67.8974]
[1645205148735,0.25,90.876,90.791,110.0]
[1645205148932,0.25,90.876,90.79,16.5262]
[1645205148933,0.25,90.876,90.8,55.0677]
[1645205149736,0.25,90.876,90.801,2.8793831]
[1645205150341,6.0,90.877,90.811,110.0]
[1645205150540,1.53694938,90.895,90.82,55.0515]
[1645205150742,1.53694938,90.904,90.821,121.753]
[1645205151042,1.53694938,90.913,90.821,118.3823831]
[1645205151342,16.516,90.91,90.83,16.5155]
[1645205151551,1.53694938,90.901,90.822,2.6293831]
[1645205151742,1.53694938,90.89,90.8,55.0656]
[1645205151944,1.53694938,90.886,90.771,5.503]
[1645205152142,5.753,90.885,90.78,12.82]
[1645205152343,49.5822,90.885,90.784,110.0]
[1645205152543,5.503,90.884,90.784,110.0]
[1645205152744,0.25,90.883,90.793,0.25]
[1645205153343,16.5226,90.88,90.81,16.523]
[1645205153543,0.25,90.879,90.81,16.523]
[1645205153745,0.25,90.883,90.81,16.523]
[1645205154547,16.5216,90.88,90.81,16.523]
[1645205154745,0.25,90.879,90.81,16.523]
[1645205155748,16.5232,90.87,90.81,16.523]
[1645205155946,48.36114773,90.869,90.81,16.523]
[1645205156746,47.91674773,90.869,90.81,16.523]
[1645205157748,6.0,90.868,90.81,16.523]
[1645205157947,116.0,90.868,90.79,24.1413]
[1645205158153,16.5253,90.86,90.79,40.6666]
[1645205158349,0.25,90.859,90.79,40.6666]
[1645205158949,0.25,90.859,90.79,24.1413]
[1645205159753,0.25,90.859,90.8,16.5249]
[1645205160553,23.3274,90.867,90.801,110.0]
[1645205160753,24.6026,90.885,90.82,16.5192]
[1645205161052,6.0,90.884,90.821,0.25]
[1645205161452,6.0,90.884,90.821,110.25]
[1645205161653,52.72502968,90.894,90.821,110.25]
[1645205161851,52.72502968,90.894,90.83,16.518]
[1645205162052,52.72502968,90.894,90.83,29.338]
[1645205162452,1.53694938,90.908,90.83,29.338]
[1645205162654,1.53694938,90.913,90.83,29.338]
[1645205162852,1.53694938,90.913,90.831,0.25]
[1645205163052,16.5139,90.92,90.831,0.25]
[1645205163252,16.5139,90.92,90.85,16.5135]
[1645205163452,49.29841749,90.919,90.85,16.5135]
[1645205163853,110.0,90.918,90.85,16.5135]
[1645205164055,110.0,90.909,90.83,12.82]
[1645205164253,133.602,90.908,90.84,16.5176]
[1645205164455,23.852,90.908,90.84,16.5176]
[1645205165056,16.5183,90.9,90.84,16.5176]
[1645205165256,44.26627527,90.897,90.81,18.322]
[1645205165456,110.0,90.896,90.794,23.1533]
[1645205165657,110.0,90.894,90.794,23.1533]
[1645205165855,110.0,90.892,90.794,23.1533]
[1645205166080,110.0,90.89,90.794,23.1533]
[1645205166257,16.5252,90.86,90.785,24.4079]
[1645205166457,45.86745131,90.858,90.786,0.25]
[1645205166656,45.86745131,90.858,90.8,16.5251]
[1645205166657,155.86745131,90.858,90.8,16.5251]
[1645205167060,155.86745131,90.858,90.787,22.27266573]
[1645205167257,155.86745131,90.858,90.788,0.25]
[1645205167459,155.86745131,90.858,90.785,24.4079]
[1645205167659,110.0,90.849,90.78,12.82]
[1645205167858,16.5266,90.85,90.79,16.5266]
[1645205168057,0.25,90.849,90.79,16.5266]
[1645205169159,45.86745131,90.858,90.79,16.5266]
[1645205169360,0.25,90.857,90.79,16.5266]
[1645205170360,16.528,90.85,90.79,16.5266]
[1645205171362,0.25,90.857,90.79,16.5266]
[1645205171965,0.25,90.857,90.791,0.25]
[1645205172165,0.25,90.857,90.81,16.5231]
[1645205172364,45.86745131,90.858,90.81,16.5231]
[1645205172566,6.0,90.857,90.81,16.5231]
[1645205173367,6.0,90.857,90.811,0.25]
[1645205173578,23.0882,90.867,90.82,16.5201]
[1645205174382,46.81376175,90.866,90.82,16.5201]
[1645205174580,23.0882,90.867,90.82,16.5201]
[1645205175482,23.0882,90.867,90.81,16.5232]
[1645205175685,52.57117012,90.866,90.78,67.8995]
[1645205175883,74.40388702,90.866,90.785,6.25]
[1645205176085,6.0,90.865,90.785,0.25]
[1645205177386,16.5249,90.86,90.8,16.5249]
[1645205177586,110.0,90.859,90.772,5.505]
[1645205177786,110.0,90.859,90.761,5.505]
[1645205177984,112.6293831,90.859,90.761,5.505]
[1645205178184,110.0,90.859,90.761,5.505]
[1645205178382,2.6293831,90.858,90.762,22.28881605]
[1645205178585,112.6293831,90.858,90.762,22.28881605]
[1645205178984,2.6293831,90.857,90.763,0.25]
[1645205179384,110.0,90.849,90.762,22.28881605]
[1645205179586,40.86615506,90.846,90.74,67.9235]
[1645205179786,115.506,90.845,90.74,55.1035]
[1645205179984,118.3853831,90.845,90.74,55.1035]
[1645205180386,2.6293831,90.844,90.74,55.1035]
[1645205180585,110.0,90.842,90.74,55.1035]
[1645205180786,110.0,90.84,90.74,55.1035]
[1645205180984,110.0,90.838,90.74,55.1035]
[1645205181188,11.507,90.837,90.741,6.0]
[1645205181388,16.5333,90.82,90.76,16.5321]
[1645205181587,49.915171,90.819,90.76,16.5321]
[1645205182989,115.507,90.835,90.76,16.5321]
[1645205182990,5.507,90.835,90.76,16.5321]
[1645205183188,46.566,90.836,90.78,16.5291]
[1645205183588,110.0,90.848,90.78,16.5291]
[1645205183790,110.0,90.857,90.78,16.5291]
[1645205183988,41.67759547,90.856,90.78,16.5291]
[1645205184189,110.0,90.855,90.76,55.0939]
[1645205184389,110.0,90.853,90.77,16.5311]
[1645205184992,110.0,90.851,90.77,16.5311]
[1645205185195,110.0,90.849,90.741,6.0]
[1645205185393,140.6081,90.848,90.76,16.5328]
[1645205185595,140.6081,90.848,90.761,0.25]
[1645205185596,25.1021,90.848,90.761,0.25]
[1645205185793,24.8521,90.848,90.761,0.25]
[1645205185992,134.8521,90.848,90.761,0.25]
[1645205186193,24.8521,90.848,90.751,6.0]
[1645205186395,24.8521,90.848,90.78,16.5284]
[1645205186794,134.8521,90.848,90.751,6.0]
[1645205186994,110.0,90.846,90.74,12.82]
[1645205187197,110.0,90.844,90.741,6.25]
[1645205187395,110.0,90.842,90.741,6.25]
[1645205187594,110.0,90.84,90.741,6.25]
[1645205187795,41.50991675,90.841,90.743,110.0]
[1645205187996,41.50991675,90.841,90.76,16.5313]
[1645205188199,41.50991675,90.841,90.761,5.756]
[1645205188397,6.0,90.847,90.762,110.0]
[1645205188598,23.9981,90.895,90.764,110.0]
[1645205188801,110.0,90.899,90.766,110.0]
[1645205189001,47.7351,90.916,90.781,110.0]
[1645205189202,47.7351,90.916,90.783,110.0]
[1645205189504,45.14743872,90.915,90.785,110.0]
[1645205189802,6.0,90.914,90.787,110.0]
[1645205190002,5.503,90.913,90.801,110.0]
[1645205190200,5.503,90.913,90.82,16.5172]
[1645205190401,5.503,90.913,90.821,0.25]
[1645205190605,45.14743872,90.915,90.821,2.8793831]
[1645205190802,45.14743872,90.915,90.822,11.502]
[1645205191001,45.14743872,90.915,90.823,0.25]
[1645205191208,45.14743872,90.915,90.824,5.502]
[1645205191403,45.14743872,90.915,90.84,16.5158]
[1645205191803,45.14743872,90.915,90.83,55.0526]
[1645205192103,0.25,90.914,90.831,0.25]
[1645205192303,0.25,90.914,90.831,110.25]
[1645205192502,0.25,90.914,90.831,0.25]
[1645205192903,45.14743872,90.915,90.831,0.25]
[1645205193306,45.14743872,90.915,90.85,16.5151]
[1645205194304,6.0,90.914,90.85,16.5151]
[1645205194507,0.25,90.913,90.85,16.5151]
[1645205194706,5.501,90.912,90.84,16.5181]
[1645205194905,5.501,90.912,90.8,12.82]
[1645205195107,2.6293831,90.911,90.801,6.0]
[1645205195307,110.0,90.909,90.802,0.25]
[1645205195508,110.0,90.907,90.802,0.25]
[1645205195809,2.6293831,90.911,90.801,6.0]
[1645205195810,110.0,90.905,90.82,16.5206]
[1645205196106,110.0,90.903,90.82,16.5206]
[1645205196307,110.0,90.901,90.82,16.5206]
[1645205196508,110.0,90.899,90.82,16.5206]
[1645205196709,115.503,90.898,90.82,16.5206]
[1645205197713,6.0,90.897,90.82,16.5206]
[1645205197911,5.503,90.896,90.82,16.5206]
[1645205198110,110.0,90.895,90.82,16.5206]
[1645205198316,110.0,90.893,90.82,16.5206]
[1645205198515,5.503,90.895,90.81,16.5237]
[1645205198712,110.0,90.894,90.81,16.5237]
[1645205198912,110.0,90.892,90.81,16.5237]
[1645205199111,110.0,90.89,90.81,16.5237]
[1645205200213,16.5243,90.89,90.81,16.5237]
[1645205200413,118.1323831,90.889,90.81,16.5237]
[1645205200814,2.6293831,90.888,90.8,16.5256]
[1645205201011,110.0,90.886,90.8,16.0256]
[1645205201213,110.0,90.884,90.8,16.0256]
[1645205201613,2.6293831,90.883,90.8,16.0256]
[1645205203716,51.66870106,90.885,90.8,16.0256]
[1645205204117,51.66870106,90.885,90.801,5.253]
[1645205204318,51.66870106,90.885,90.82,16.5206]
[1645205204519,51.66870106,90.885,90.82,29.3406]
[1645205205922,0.25,90.884,90.82,29.3406]
[1645205206319,6.25,90.884,90.821,0.25]
[1645205206519,6.25,90.884,90.83,16.5193]
[1645205207338,6.25,90.884,90.8,12.82]
[1645205207539,47.5623,90.883,90.801,6.25]
[1645205207739,0.25,90.882,90.79,73.3965]
[1645205207939,0.25,90.882,90.81,16.5224]
[1645205208543,47.5623,90.883,90.81,29.3424]
[1645205209144,6.0,90.884,90.83,16.519]
[1645205209543,6.0,90.884,90.83,29.339]
[1645205209745,0.25,90.883,90.83,29.339]
[1645205209944,0.25,90.883,90.831,110.0]
[1645205210146,6.0,90.884,90.84,16.5163]
[1645205210346,115.502,90.936,90.841,0.25]
[1645205210745,131.9363,90.936,90.841,0.25]
[1645205211147,110.0,90.934,90.841,0.25]
[1645205211346,110.0,90.932,90.86,16.5141]
[1645205211547,0.25,90.931,90.86,16.5141]
[1645205211746,5.5,90.93,90.86,16.5141]
[1645205211947,0.25,90.929,90.86,16.5141]
[1645205212147,5.5,90.928,90.86,16.5141]
[1645205212347,0.25,90.927,90.86,16.5141]
[1645205212750,5.5,90.926,90.86,16.5141]
[1645205212948,0.25,90.925,90.86,16.5141]
[1645205213950,0.25,90.932,90.86,16.5141]
[1645205215150,54.01741555,90.935,90.86,16.5141]
[1645205215151,0.25,90.934,90.86,16.5141]
[1645205215451,48.51741555,90.935,90.861,0.25]
[1645205215650,48.51741555,90.935,90.861,110.25]
[1645205216453,48.51741555,90.935,90.89,16.5092]
[1645205216653,0.25,90.934,90.89,16.5092]
[1645205216853,0.25,90.934,90.86,67.8518]
[1645205217853,2.8793831,90.934,90.857,23.2762]
[1645205218053,5.5,90.933,90.857,23.2762]
[1645205218255,0.25,90.932,90.857,23.2762]
[1645205218456,5.5,90.931,90.857,23.2762]
[1645205218655,110.0,90.929,90.84,67.8632]
[1645205218859,110.0,90.929,90.86,16.5146]
[1645205218860,5.751,90.928,90.86,16.5146]
[1645205219257,0.25,90.928,90.86,16.5146]
[1645205220056,6.25,90.934,90.86,16.5146]
[1645205220757,16.5164,90.93,90.85,16.5164]
[1645205220958,5.751,90.929,90.841,24.0275]
[1645205221160,110.0,90.928,90.841,24.0275]
[1645205221365,110.0,90.926,90.82,67.8759]
[1645205221559,110.0,90.924,90.82,67.8759]
[1645205221758,5.501,90.923,90.82,67.8759]
[1645205222365,110.0,90.921,90.84,16.5182]
[1645205222561,110.0,90.919,90.82,55.0559]
[1645205222760,110.0,90.917,90.82,55.0559]
[1645205223062,110.0,90.915,90.81,12.82]
[1645205223260,110.0,90.913,90.81,12.82]
[1645205223460,110.0,90.911,90.81,12.82]
[1645205223660,110.0,90.909,90.81,12.82]
[1645205223863,110.0,90.907,90.81,12.82]
[1645205224160,110.0,90.903,90.83,16.5199]
[1645205224360,110.0,90.901,90.83,16.5199]
[1645205224560,115.502,90.9,90.83,16.5199]
[1645205224759,0.25,90.899,90.83,16.5199]
[1645205225661,0.25,90.899,90.81,67.8835]
[1645205225662,2.6293831,90.898,90.82,16.5216]
[1645205225861,0.25,90.897,90.82,16.5216]
[1645205226264,2.6293831,90.896,90.82,16.5216]
[1645205226464,0.25,90.895,90.82,16.5216]
[1645205227062,110.0,90.894,90.82,16.5216]
[1645205227264,110.0,90.889,90.81,16.5237]
[1645205227463,53.3414522,90.888,90.81,16.5237]
[1645205227666,110.0,90.887,90.81,16.5237]
[1645205227866,0.25,90.886,90.81,16.5237]
[1645205229169,110.0,90.885,90.81,16.5237]
[1645205229366,0.25,90.884,90.81,16.5237]
[1645205230070,16.5254,90.88,90.806,24.4891]
[1645205230271,110.25,90.879,90.806,24.4891]
[1645205230470,134.7994,90.879,90.8,16.5254]
[1645205231275,110.0,90.869,90.776,22.9816]
[1645205231473,110.0,90.867,90.776,22.9816]
[1645205231670,110.0,90.867,90.754,22.9764]
[1645205231671,110.0,90.865,90.754,22.9764]
[1645205231871,110.0,90.863,90.754,22.9764]
[1645205232070,110.0,90.861,90.754,22.9764]
[1645205232270,110.0,90.859,90.754,22.9764]
[1645205232470,126.531,90.85,90.77,16.531]
[1645205232671,50.13669623,90.849,90.77,16.531]
[1645205232871,5.506,90.848,90.77,16.531]
[1645205233172,0.25,90.847,90.77,16.531]
[1645205233375,110.0,90.845,90.754,22.9764]
[1645205233596,110.0,90.843,90.754,22.9764]
[1645205233778,110.0,90.841,90.754,22.9764]
[1645205233978,110.0,90.839,90.754,22.9764]
[1645205234274,0.25,90.838,90.754,22.9764]
[1645205234474,0.25,90.838,90.76,16.5325]
[1645205235274,0.25,90.845,90.76,16.5325]
[1645205235475,110.25,90.846,90.76,16.5325]
[1645205236174,110.0,90.844,90.76,16.5325]
[1645205236378,110.0,90.842,90.76,16.5325]
[1645205236578,0.25,90.841,90.76,16.5325]
[1645205236777,110.0,90.84,90.76,16.5325]
[1645205236975,0.25,90.839,90.76,16.5325]
[1645205237176,110.0,90.838,90.76,16.5325]
[1645205237375,0.25,90.837,90.76,16.5325]
[1645205238278,2.8793831,90.837,90.76,16.5325]
[1645205238477,2.8793831,90.837,90.736,5.506]
[1645205238478,110.0,90.829,90.74,16.5351]
[1645205238678,5.506,90.836,90.736,5.506]
[1645205238679,110.0,90.827,90.736,5.506]
[1645205238877,0.25,90.826,90.736,5.506]
[1645205239081,110.0,90.824,90.736,5.506]
[1645205239277,110.0,90.822,90.736,5.506]
[1645205239478,110.0,90.82,90.736,5.506]
[1645205239680,16.5377,90.82,90.736,5.506]
[1645205239878,24.3048,90.821,90.737,0.25]
[1645205240277,110.0,90.82,90.737,0.25]
[1645205240481,110.0,90.82,90.736,5.506]
[1645205240677,110.0,90.818,90.736,5.506]
[1645205240882,110.0,90.816,90.736,5.506]
[1645205241099,110.0,90.814,90.736,5.506]
[1645205241300,24.3048,90.821,90.736,5.506]
[1645205241301,110.0,90.812,90.736,5.506]
[1645205241505,110.0,90.81,90.7,12.82]
[1645205241705,5.0,90.801,90.7,16.5435]
[1645205241900,110.0,90.799,90.676,2.6293831]
[1645205242100,110.0,90.797,90.676,2.6293831]
[1645205242300,110.0,90.797,90.672,1.872382]
[1645205242301,0.25,90.796,90.672,1.872382]
[1645205242500,110.0,90.794,90.672,1.872382]
[1645205242701,5.51,90.795,90.672,1.872382]
[1645205242702,110.0,90.792,90.672,1.872382]
[1645205242901,110.0,90.79,90.672,1.872382]
[1645205243101,110.0,90.788,90.672,1.872382]
[1645205243302,110.0,90.786,90.672,1.872382]
[1645205243503,0.25,90.785,90.672,1.872382]
[1645205243705,110.0,90.777,90.673,6.0]
[1645205244004,0.25,90.776,90.681,110.0]
[1645205244206,6.25,90.776,90.682,0.25]
[1645205244604,6.25,90.776,90.683,6.4289015]
[1645205244806,49.2035,90.775,90.684,0.25]
[1645205245105,0.25,90.774,90.684,0.25]
[1645205245305,0.25,90.774,90.691,110.0]
[1645205245611,49.2035,90.775,90.692,5.51]
[1645205245806,49.2035,90.775,90.692,2.6293831]
[1645205246008,2.6293831,90.774,90.69,12.82]
[1645205246205,2.6293831,90.774,90.683,0.4289015]
[1645205246206,5.51,90.773,90.683,0.4289015]
[1645205246408,49.2035,90.775,90.69,16.5456]
[1645205246813,0.25,90.774,90.69,16.5456]
[1645205247109,110.25,90.774,90.69,16.5456]
[1645205247709,110.0,90.772,90.69,16.5456]
[1645205247909,0.25,90.771,90.69,16.5456]
[1645205248112,0.25,90.771,90.7,16.5438]
[1645205248810,6.25,90.772,90.7,16.5438]
[1645205249111,0.25,90.772,90.7,16.5438]
[1645205249312,6.25,90.774,90.7,16.5438]
[1645205249514,6.0,90.774,90.701,110.25]
[1645205249713,44.8472468,90.778,90.72,16.5388]
[1645205249714,6.0,90.773,90.72,16.5388]
[1645205249911,44.8472468,90.778,90.721,110.0]
[1645205250113,5.509,90.846,90.723,110.0]
[1645205250316,23.0469,90.825,90.725,110.0]
[1645205250615,110.0,90.824,90.73,16.5359]
[1645205250811,110.0,90.822,90.73,16.5359]
[1645205251011,161.9596582,90.82,90.724,24.9746]
[1645205251212,161.9596582,90.82,90.692,5.508]
[1645205251213,110.0,90.818,90.692,5.508]
[1645205251512,110.0,90.816,90.692,24.9627]
[1645205251712,110.0,90.814,90.692,24.9627]
[1645205251915,110.0,90.812,90.692,24.9627]
[1645205252112,110.0,90.81,90.692,24.9627]
[1645205252413,110.0,90.789,90.71,16.5417]
[1645205252613,110.0,90.785,90.692,24.9627]
[1645205252817,5.51,90.784,90.692,24.9627]
[1645205253017,5.51,90.785,90.692,24.9627]
[1645205253218,8.6293831,90.784,90.692,24.9627]
[1645205253417,8.1393831,90.783,90.692,24.9627]
[1645205253616,6.0,90.784,90.692,24.9627]
[1645205254216,6.0,90.783,90.693,0.25]
[1645205254420,67.19287946,90.786,90.71,16.5421]
[1645205254718,110.0,90.784,90.71,16.5421]
[1645205255016,6.0,90.785,90.71,16.5421]
[1645205255717,0.25,90.784,90.71,16.5421]
[1645205256618,110.25,90.784,90.71,16.5421]
[1645205256820,110.0,90.779,90.7,16.5436]
[1645205257021,0.25,90.778,90.7,16.5436]
[1645205257219,110.0,90.776,90.7,16.5436]
[1645205257419,110.0,90.774,90.7,16.5436]
[1645205257621,0.25,90.773,90.7,16.5436]
[1645205257821,110.0,90.772,90.7,16.5436]
[1645205258019,159.30433386,90.771,90.7,16.5436]
[1645205258220,49.05433386,90.771,90.7,16.5436]
[1645205258421,16.7948,90.77,90.7,16.5436]
[1645205258820,40.9806,90.77,90.7,16.5436]
[1645205259020,24.4358,90.77,90.7,16.5436]
[1645205259726,5.51,90.801,90.73,16.5373]
[1645205259921,16.1839,90.826,90.701,118.8793831]
[1645205259922,16.1839,90.826,90.731,5.758]
[1645205260220,29.6089,90.825,90.731,2.8793831]
[1645205260422,110.0,90.824,90.732,2.6293831]
[1645205260622,16.5361,90.82,90.732,2.6293831]
[1645205260822,110.0,90.818,90.722,24.6553]
[1645205261021,16.5361,90.82,90.722,24.6553]
[1645205261022,110.0,90.816,90.722,24.6553]
[1645205261520,5.508,90.819,90.722,24.6553]
[1645205261721,16.5361,90.82,90.723,0.25]
[1645205262323,16.5361,90.82,90.74,16.5351]
[1645205262324,110.25,90.819,90.74,16.5351]
[1645205262522,115.757,90.819,90.74,16.5351]
[1645205262723,110.25,90.819,90.74,16.5351]
[1645205262923,110.0,90.809,90.722,24.6553]
[1645205263123,110.0,90.807,90.722,24.6553]
[1645205263322,0.25,90.806,90.722,24.6553]
[1645205264023,6.25,90.806,90.722,24.6553]
[1645205264222,6.25,90.806,90.73,16.5383]
[1645205265829,0.25,90.806,90.73,16.5383]
[1645205266026,6.25,90.807,90.73,16.5383]
[1645205266226,6.0,90.807,90.73,16.5383]
[1645205266425,6.0,90.807,90.731,0.25]
[1645205266626,6.0,90.807,90.75,16.5332]
[1645205267029,44.0510031,90.808,90.75,16.5332]